[Event "12th Tamil Nadu Circuit-IM 2024"]
[Site "Chennai"]
[Date "2024.01.09"]
[Round "1.5"]
[White "Touzane, Olivier"]
[Black "Tologon tegin, Semetei"]
[Result "0-1"]
[ECO "A37"]
[WhiteElo "2242"]
[BlackElo "2384"]
[Annotator "RC"]
[PlyCount "112"]
[EventDate "2024.01.09"]
[EventType "tourn"]
[EventCountry "IND"]
[SourceTitle "playchess.com"]
[Source "ChessBase"]
[SourceQuality "1"]
[TimeControl "5400+30"]

1. Nf3 {[%emt 0:35:34]} c5 {[%emt 0:00:20]} 2. g3 {[%emt 0:01:00]} Nc6 {[%emt 0:00:11]} 3. Bg2 {[%emt 0:00:12]} g6 {[%emt 0:00:22]} 4. c4 {[%emt 0:00:54]} Bg7 {[%emt 0:00:08]} 5. Nc3 {[%emt 0:00:24]} d6 {[%emt 0:00:26]} 6. d3 {[%emt 0:01:17]} e6 {[%emt 0:01:12]} 7. O-O {[%emt 0:06:40]} Nge7 {[%emt 0:02:20]} 8. Bd2 {[%emt 0:01:57]} b6 {[%emt 0:01:25]} 9. Rb1 {[%emt 0:01:24]} Bb7 {[%emt 0:00:15]} 10. e3 {[%emt 0:05:51]} O-O {[%emt 0:01:11]} 11. a3 {[%emt 0:19:08]} d5 {[%emt 0:06:41]} 12. Qe2 {[%emt 0:23:40]} dxc4 {[%emt 0:00:12]} 13. dxc4 {[%emt 0:01:24]} a6 {[%emt 0:14:35]} 14. Rfd1 {[%emt 0:00:46]} Qc7 {[%emt 0:04:01]} 15. h4 {[%emt 0:01:44]} h6 {[%emt 0:05:33]} 16. Na4 {[%emt 0:13:39]} Rfd8 {[%emt 0:10:03]} 17. Bc3 {[%emt 0:16:49]} e5 {[%emt 0:02:16]} 18. Qc2 {[%emt 0:14:47]} Rab8 {[%emt 0:02:26]} 19. Ne1 {[%emt 0:08:57]} Bc8 {[%emt 0:03:31]} 20. Rxd8+ {[%emt 0:01:47]} Nxd8 {[%emt 0:00:06]} 21. Rd1 {[%emt 0:01:10]} Bg4 {[%emt 0:01:22]} 22. f3 {[%emt 0:01:06]} Bf5 {[%emt 0:00:21]} 23. Qd2 {[%emt 0:01:25]} Nb7 {[%emt 0:02:32]} 24. b3 {[%emt 0:01:19]} Rd8 {[%emt 0:03:33]} 25. Qc1 {[%emt 0:00:39]} Bd7 {[%emt 0:00:34]} 26. Nb2 {[%emt 0:00:29]} h5 {[%emt 0:00:22]} 27. e4 {[%emt 0:03:58]} Nc6 {[%emt 0:00:16]} 28. Nc2 {[%emt 0:01:37]} Nd4 {[%emt 0:00:07]} 29. Nxd4 {[%emt 0:00:25]} exd4 {[%emt 0:00:51]} 30. Be1 {[%emt 0:00:25]} f5 {[%emt 0:01:56]} 31. Nd3 {[%emt 0:01:39]} fxe4 {[%emt 0:00:40]} 32. fxe4 {[%emt 0:00:38]} Bg4 {[%emt 0:00:05]} 33. Rd2 {[%emt 0:00:56]} Bh6 {[%emt 0:00:13]} 34. e5 {[%emt 0:00:27]} Na5 {[%emt 0:01:12]} 35. Qc2 {[%emt 0:01:27]} Bf5 {[%emt 0:01:00]} 36. Rf2 {[%emt 0:00:19]} Be3 {[%emt 0:00:11]} 37. Bd5+ {[%emt 0:00:15]} Kg7 {[%emt 0:00:24]} 38. Kh2 {[%emt 0:00:39]} Bxf2 {[%emt 0:02:46]} 39. Qxf2 {[%emt 0:00:15]} Rf8 {[%emt 0:00:08]} 40. Nf4 {[%emt 0:00:42]} Qxe5 {[%emt 0:00:05]} 41. Bxa5 {[%emt 0:00:21]} bxa5 {[%emt 0:00:04]} 42. Qd2 {[%emt 0:00:06]} Qc7 {[%emt 0:02:15]} 43. Be6 {[%emt 0:00:52]} Qe7 {[%emt 0:00:28]} 44. Bd5 {[%emt 0:00:22]} Qc7 {[%emt 0:00:38]} 45. Be6 {[%emt 0:00:16]} Kh7 {[%emt 0:00:19]} 46. Qg2 {[%emt 0:00:31]} Qe7 {[%emt 0:00:14]} 47. Qd5 {[%emt 0:00:30]} Rd8 {[%emt 0:00:22]} 48. Bxf5 {[%emt 0:01:02]} Rxd5 {[%emt 0:00:10]} 49. Bxg6+ {[%emt 0:00:07]} Kh6 {[%emt 0:00:03]} 50. cxd5 {[%emt 0:00:13]} a4 {[%emt 0:00:09]} 51. bxa4 {[%emt 0:01:17]} c4 {[%emt 0:00:05]} 52. Bxh5 {[%emt 0:00:22]} d3 {[%emt 0:00:10]} 53. Bf3 {[%emt 0:00:39]} d2 {[%emt 0:00:18]} 54. Kg2 {[%emt 0:00:34]} c3 {[%emt 0:00:19]} 55. Bd1 {[%emt 0:00:24]} Qe4+ {[%emt 0:00:07]} 56. Kf2 {[%emt 0:00:19]} Qe1+ {[%emt 0:00:13]} 0-1

[Event "12th Tamil Nadu Circuit-IM 2024"]
[Site "Chennai"]
[Date "2024.01.09"]
[Round "2.1"]
[White "Md Imran"]
[Black "Tologon tegin, Semetei"]
[Result "0-1"]
[ECO "A42"]
[WhiteElo "2222"]
[BlackElo "2384"]
[Annotator "RC"]
[PlyCount "134"]
[EventDate "2024.01.09"]
[EventType "tourn"]
[EventCountry "IND"]
[SourceTitle "playchess.com"]
[Source "ChessBase"]
[SourceQuality "1"]
[TimeControl "5400+30"]

1. d4 {[%emt 0:00:01]} g6 {[%emt 0:04:05]} 2. c4 {[%emt 0:00:21]} Bg7 {[%emt 0:00:06]} 3. Nc3 {[%emt 0:00:05]} d6 {[%emt 0:00:18]} 4. e4 {[%emt 0:00:03]} e5 {[%emt 0:01:33]} 5. d5 {[%emt 0:00:02]} Ne7 {[%emt 0:00:26]} 6. h4 {[%emt 0:00:52]} h5 {[%emt 0:00:25]} 7. Bg5 {[%emt 0:00:17]} Nd7 {[%emt 0:00:48]} 8. Bd3 {[%emt 0:00:15]} a5 {[%emt 0:01:12]} 9. Nge2 {[%emt 0:00:12]} Nc5 {[%emt 0:09:34]} 10. Bc2 {[%emt 0:00:40]} f6 {[%emt 0:00:04]} 11. Be3 {[%emt 0:00:25]} Bh6 {[%emt 0:00:01]} 12. Bxh6 {[%emt 0:01:12]} Rxh6 {[%emt 0:00:52]} 13. Qd2 {[%emt 0:02:00]} Rh8 {[%emt 0:00:15]} 14. O-O {[%emt 0:00:17]} Ng8 {[%emt 0:04:04]} 15. b3 {[%emt 0:03:15]} Nh6 {[%emt 0:11:02]} 16. f4 {[%emt 0:04:20]} Qe7 {[%emt 0:02:00]} 17. a3 {[%emt 0:03:03]} Ng4 {[%emt 0:05:18]} 18. f5 {[%emt 0:04:38]} gxf5 {[%emt 0:01:11]} 19. exf5 {[%emt 0:00:08]} Qh7 {[%emt 0:00:25]} 20. Ne4 {[%emt 0:00:51]} Nxe4 {[%emt 0:03:24]} 21. Bxe4 {[%emt 0:00:32]} Qh6 {[%emt 0:00:02]} 22. Qc3 {[%emt 0:02:01]} Qe3+ {[%emt 0:00:38]} 23. Qxe3 {[%emt 0:00:03]} Nxe3 {[%emt 0:00:03]} 24. Rf3 {[%emt 0:00:08]} Ng4 {[%emt 0:00:03]} 25. Rc1 {[%emt 0:07:12]} b6 {[%emt 0:00:17]} 26. Nc3 {[%emt 0:03:53]} Bd7 {[%emt 0:01:23]} 27. Nb5 {[%emt 0:00:30]} Kd8 {[%emt 0:00:36]} 28. Nc3 {[%emt 0:01:23]} Rg8 {[%emt 0:00:48]} 29. g3 {[%emt 0:01:13]} Ke7 {[%emt 0:03:15]} 30. Nd1 {[%emt 0:01:21]} Rg7 {[%emt 0:01:43]} 31. Ne3 {[%emt 0:00:19]} Rag8 {[%emt 0:00:27]} 32. Re1 {[%emt 0:00:13]} Nxe3 {[%emt 0:01:20]} 33. Rexe3 {[%emt 0:00:02]} Rg4 {[%emt 0:03:43]} 34. Kf2 {[%emt 0:01:15]} b5 {[%emt 0:05:37]} 35. cxb5 {[%emt 0:00:53]} Bxb5 {[%emt 0:00:16]} 36. Re1 {[%emt 0:00:03]} c5 {[%emt 0:11:35]} 37. Rc3 {[%emt 0:14:23]} Bd7 {[%emt 0:01:16]} 38. Ree3 {[%emt 0:00:36]} Rb8 {[%emt 0:06:19]} 39. Re2 {[%emt 0:01:49]} Rb6 {[%emt 0:00:46]} 40. Bf3 {[%emt 0:00:37]} Rd4 {[%emt 0:00:06]} 41. Bxh5 {[%emt 0:00:05]} Bxf5 {[%emt 0:00:03]} 42. Bf3 {[%emt 0:00:27]} Kf7 {[%emt 0:00:36]} 43. Ke3 {[%emt 0:01:02]} Kg7 {[%emt 0:05:05]} 44. Rf2 {[%emt 0:00:17]} Rb8 {[%emt 0:05:32]} 45. Be2 {[%emt 0:01:59]} Be4 {[%emt 0:00:11]} 46. Bc4 {[%emt 0:00:59]} f5 {[%emt 0:02:51]} 47. Ke2 {[%emt 0:03:01]} Kg6 {[%emt 0:03:40]} 48. Rc1 {[%emt 0:02:15]} Bxd5 {[%emt 0:02:25]} 49. Bxd5 {[%emt 0:00:07]} Rxd5 {[%emt 0:00:01]} 50. Rcf1 {[%emt 0:00:17]} Rf8 {[%emt 0:00:27]} 51. Rf3 {[%emt 0:01:19]} Rd4 {[%emt 0:01:22]} 52. Rd3 {[%emt 0:00:08]} Rxd3 {[%emt 0:00:12]} 53. Kxd3 {[%emt 0:00:01]} d5 {[%emt 0:00:07]} 54. Rc1 {[%emt 0:00:17]} Rc8 {[%emt 0:00:04]} 55. Re1 {[%emt 0:00:14]} Kf6 {[%emt 0:00:04]} 56. Rc1 {[%emt 0:00:06]} e4+ {[%emt 0:00:16]} 57. Ke3 {[%emt 0:00:08]} Ke5 {[%emt 0:00:26]} 58. h5 {[%emt 0:00:02]} d4+ {[%emt 0:02:22]} 59. Ke2 {[%emt 0:00:01]} Kf6 {[%emt 0:00:12]} 60. Rc4 {[%emt 0:00:09]} Rh8 {[%emt 0:01:44]} 61. Rxc5 {[%emt 0:00:19]} Rxh5 {[%emt 0:00:01]} 62. Rxa5 {[%emt 0:00:09]} Rh2+ {[%emt 0:00:03]} 63. Ke1 {[%emt 0:00:03]} d3 {[%emt 0:00:05]} 64. Rd5 {[%emt 0:00:10]} Kg5 {[%emt 0:00:36]} 65. b4 {[%emt 0:00:11]} Kg4 {[%emt 0:00:03]} 66. b5 {[%emt 0:00:05]} Kf3 {[%emt 0:00:24]} 67. Rxf5+ {[%emt 0:00:16]} Ke3 {[%emt 0:00:03]} 0-1

[Event "12th Tamil Nadu Circuit-IM 2024"]
[Site "Chennai"]
[Date "2024.01.09"]
[Round "2.2"]
[White "Gochelashvili, David"]
[Black "Touzane, Olivier"]
[Result "1/2-1/2"]
[ECO "E08"]
[WhiteElo "2287"]
[BlackElo "2242"]
[Annotator "RC"]
[PlyCount "24"]
[EventDate "2024.01.09"]
[EventType "tourn"]
[EventCountry "IND"]
[SourceTitle "playchess.com"]
[Source "ChessBase"]
[SourceQuality "1"]
[TimeControl "5400+30"]

1. d4 {[%emt 0:01:39]} Nf6 {[%emt 0:00:14]} 2. Nf3 {[%emt 0:00:19]} e6 {[%emt 0:00:24]} 3. g3 {[%emt 0:00:13]} Be7 {[%emt 0:00:47]} 4. Bg2 {[%emt 0:00:09]} d5 {[%emt 0:01:25]} 5. c4 {[%emt 0:01:35]} O-O {[%emt 0:03:03]} 6. O-O {[%emt 0:00:12]} c6 {[%emt 0:02:45]} 7. Qc2 {[%emt 0:00:06]} Nbd7 {[%emt 0:03:19]} 8. Rd1 {[%emt 0:04:07]} b6 {[%emt 0:05:02]} 9. Bf4 {[%emt 0:00:21]} Nh5 {[%emt 0:02:15]} 10. Bc1 {[%emt 0:00:06]} Nhf6 {[%emt 0:00:16]} 11. Bf4 {[%emt 0:00:06]} Nh5 {[%emt 0:00:16]} 12. Bc1 {[%emt 0:00:06]} Nhf6 {[%emt 0:00:12]} 1/2-1/2

[Event "12th Tamil Nadu Circuit-IM 2024"]
[Site "Chennai"]
[Date "2024.01.09"]
[Round "2.3"]
[White "Raghav V"]
[Black "Buscara, Sevan"]
[Result "0-1"]
[ECO "B32"]
[WhiteElo "2150"]
[BlackElo "2359"]
[Annotator "ChessBase"]
[PlyCount "70"]
[EventDate "2024.01.09"]
[EventType "tourn"]
[EventCountry "IND"]
[SourceTitle "playchess.com"]
[Source "ChessBase"]
[SourceQuality "1"]
[TimeControl "5400+30"]

1. e4 {[%emt 0:00:18]} c5 {[%emt 0:00:26]} 2. Nf3 {[%emt 0:00:04]} Nc6 {[%emt 0:00:05]} 3. d4 {[%emt 0:00:03]} cxd4 {[%emt 0:00:05]} 4. Nxd4 {[%emt 0:00:04]} e5 {[%emt 0:00:05]} 5. Nb5 {[%emt 0:00:06]} d6 {[%emt 0:00:06]} 6. N1c3 {[%emt 0:00:10]} a6 {[%emt 0:00:04]} 7. Na3 {[%emt 0:00:08]} b5 {[%emt 0:00:04]} 8. Nd5 {[%emt 0:00:04]} Nge7 {[%emt 0:00:04]} 9. g3 {[%emt 0:08:54]} h5 {[%emt 0:02:29]} 10. Bg2 {[%emt 0:16:15]} Nxd5 {[%emt 0:04:01]} 11. exd5 {[%emt 0:20:33]} Nd4 {[%emt 0:00:35]} 12. O-O {[%emt 0:00:34]} Bg4 {[%emt 0:03:23]} 13. f3 {[%emt 0:01:31]} Bd7 {[%emt 0:00:32]} 14. Re1 {[%emt 0:12:09]} Nf5 {[%emt 0:01:50]} 15. Qe2 {[%emt 0:02:31]} h4 {[%emt 0:05:27]} 16. g4 {[%emt 0:01:28]} h3 {[%emt 0:00:52]} 17. Bf1 {[%emt 0:01:28]} Nh4 {[%emt 0:03:15]} 18. Qf2 {[%emt 0:08:06]} Be7 {[%emt 0:01:37]} 19. c4 {[%emt 0:01:30]} f5 {[%emt 0:01:41]} 20. g5 {[%emt 0:04:07]} Bxg5 {[%emt 0:02:17]} 21. f4 {[%emt 0:01:17]} Bf6 {[%emt 0:01:14]} 22. fxe5 {[%emt 0:02:07]} dxe5 {[%emt 0:00:40]} 23. Be3 {[%emt 0:02:32]} O-O {[%emt 0:03:50]} 24. Bb6 {[%emt 0:03:48]} Qe8 {[%emt 0:00:51]} 25. c5 {[%emt 0:00:34]} f4 {[%emt 0:00:54]} 26. Bd3 {[%emt 0:00:42]} Qh5 {[%emt 0:00:54]} 27. Be4 {[%emt 0:01:34]} Bf5 {[%emt 0:00:22]} 28. Bxf5 {[%emt 0:01:09]} Qxf5 {[%emt 0:00:29]} 29. d6 {[%emt 0:00:08]} e4 {[%emt 0:00:50]} 30. Red1 {[%emt 0:00:38]} e3 {[%emt 0:00:35]} 31. Qe2 {[%emt 0:01:05]} f3 {[%emt 0:01:07]} 32. Qc2 {[%emt 0:00:12]} Qg4+ {[%emt 0:00:29]} 33. Kh1 {[%emt 0:00:06]} Qg2+ {[%emt 0:00:15]} 34. Qxg2 {[%emt 0:00:03]} hxg2+ {[%emt 0:00:05]} 35. Kg1 {[%emt 0:00:03]} f2# {[%emt 0:00:07]} 0-1

[Event "12th Tamil Nadu Circuit-IM 2024"]
[Site "Chennai"]
[Date "2024.01.09"]
[Round "2.4"]
[White "Mamombe, Kudzanai"]
[Black "Pradeep Kumar R A"]
[Result "0-1"]
[ECO "A05"]
[WhiteElo "1797"]
[BlackElo "2189"]
[Annotator "TA"]
[PlyCount "122"]
[EventDate "2024.01.09"]
[EventType "tourn"]
[EventCountry "IND"]
[SourceTitle "playchess.com"]
[Source "ChessBase"]
[SourceQuality "1"]
[TimeControl "5400+30"]

{[%evp 15,122,-5,-3,-18,-16,-19,0,0,0,0,0,0,0,0,4,5,20,22,24,20,30,0,1,8,18,12,18,16,28,21,62,27,29,25,41,8,2,2,43,33,43,43,43,43,60,0,0,0,0,-11,-11,-26,0,0,0,0,0,0,0,0,0,0,0,0,0,0,0,0,0,0,0,0,0,0,0,0,0,0,0,0,0,0,0,0,0,0,0,-1499,-1272,-1599,-1510,-1403,-1200,-4181,-4418,-4591,-3124,-1834,-1942,-1440,-1106,-2639,-1550,-5712,-3186,-29979,-29980,-29980,-29981]} 1. Nf3 {[%emt 0:00:15]} Nf6 {[%emt 0:00:12]} 2. g3 {[%emt 0:00:06]} g6 {[%emt 0:00:05]} 3. Bg2 {[%emt 0:00:02]} Bg7 {[%emt 0:00:04]} 4. O-O {[%emt 0:00:05]} O-O {[%emt 0:00:03]} 5. d3 {[%emt 0:00:54]} d6 {[%emt 0:00:32]} 6. e4 {[%emt 0:00:14]} c5 {[%emt 0:00:05]} 7. Re1 {[%emt 0:00:38]} Nc6 {[%emt 0:00:09]} 8. c3 {[%emt 0:00:02]} e5 {[%emt 0:03:19]} 9. Qe2 {[%emt 0:03:36] A05: Réti Opening: 1 Nf3 Nf6.} Rb8 {[%emt 0:01:29] [#]} 10. a4 $146 {[%emt 0:01:44]} ({Predecessor:} 10. Be3 b5 11. Na3 b4 12. cxb4 Nxb4 13. Nc4 Ba6 14. a3 Nc6 15. b4 Bxc4 16. dxc4 Nxe4 {½-½ Corbalan Gomez,J (2057)-Llaneza Vega,P (2210) Las Palmas op 2005 (4.18)}) 10... a6 {[%emt 0:00:06]} 11. Bg5 {[%emt 0:00:39] The position is equal.} b5 {[%emt 0:00:14]} 12. axb5 {[%emt 0:00:59]} axb5 {[%emt 0:00:05]} 13. Nbd2 {[%emt 0:01:07][%cal Bb1d2,Bd2f1,Bf1e3][%mdl 32]} Be6 {[%emt 0:05:24]} 14. Nf1 {[%emt 0:01:58]} b4 {[%emt 0:01:12]} 15. Ne3 {[%emt 0:03:03]} bxc3 {[%emt 0:04:12]} 16. bxc3 {[%emt 0:00:24]} h6 {[%emt 0:00:18]} 17. Bxf6 {[%emt 0:00:14]} Bxf6 {[%emt 0:00:03]} 18. Reb1 {[%emt 0:03:24]} Rxb1+ {[%emt 0:04:16]} 19. Rxb1 {[%emt 0:00:02]} Qa5 {[%emt 0:00:06]} 20. Qc2 {[%emt 0:09:23]} Ra8 {[%emt 0:06:43]} 21. Nd5 {[%emt 0:04:17]} Bxd5 {[%emt 0:08:54]} 22. exd5 {[%emt 0:00:11]} Na7 {[%emt 0:00:23][%cal Bc6a7,Ba7c8,Bc8e7][%mdl 32] Black is weak on the light squares} 23. c4 {[%emt 0:07:36] Prevents Nb5} Nc8 {[%emt 0:05:12]} 24. Nd2 {[%emt 0:01:38]} Bg7 {[%emt 0:03:06]} 25. g4 {[%emt 0:04:33]} Qd8 {[%emt 0:00:59]} 26. Ne4 {[%emt 0:00:45]} Ne7 {[%emt 0:11:29]} 27. Qe2 {[%emt 0:02:20]} (27. Qb3 {with more complications.} f5 28. Nxc5 dxc5 29. d6) 27... Rb8 {[%emt 0:08:33]} 28. Rxb8 {[%emt 0:05:58]} Qxb8 {[%emt 0:00:36]} 29. h4 {[%emt 0:03:19]} Kh8 {[%emt 0:04:29]} 30. Ng3 {[%emt 0:05:50]} ({Better is} 30. Qf3 $14 f5 31. gxf5 gxf5 32. Ng3) 30... Bf6 $11 {[%emt 0:05:18]} 31. h5 {[%emt 0:03:23]} Bh4 {[%emt 0:01:47]} 32. Kh2 {[%emt 0:04:59]} Bxg3+ {[%emt 0:01:04]} 33. fxg3 {[%emt 0:03:06]} gxh5 {[%emt 0:01:45]} 34. gxh5 {[%emt 0:00:12][%mdl 4096] Endgame KQB-KQN} Qg8 {[%emt 0:00:39]} 35. g4 {[%emt 0:05:01]} Qg5 {[%emt 0:00:37]} 36. Be4 {[%emt 0:01:01]} Qf4+ {[%emt 0:02:58]} 37. Kh3 {[%emt 0:00:47]} Kg7 {[%emt 0:01:18]} 38. Qf3 {[%emt 0:01:36]} Qd2 {[%emt 0:01:55]} 39. Kg3 {[%emt 0:02:03]} Qe1+ {[%emt 0:00:53]} 40. Kh3 {[%emt 0:00:30]} Qg1 {[%emt 0:01:32]} 41. Qg2 {[%emt 0:02:18]} Qc1 {[%emt 0:05:40]} 42. Qf3 {[%emt 0:00:26]} Ng8 {[%emt 0:00:08]} 43. Qf2 {[%emt 0:01:45]} Nf6 {[%emt 0:01:41] [#] aiming for ...Nxe4.} 44. Bf5 {[%emt 0:01:52]} Qg5 {[%emt 0:00:20]} 45. Qf3 {[%emt 0:00:46]} Kf8 {[%emt 0:00:25]} 46. Qf2 {[%emt 0:00:37]} Ke7 {[%emt 0:00:21]} 47. Qf3 {[%emt 0:00:24]} Kf8 {[%emt 0:01:41]} 48. Qf2 {[%emt 0:00:13]} Kg7 {[%emt 0:00:06]} 49. Qf3 {[%emt 0:00:37]} Qd2 {[%emt 0:00:49]} 50. Kg3 {[%emt 0:00:48]} Ng8 {[%emt 0:00:15]} 51. Qf2 $2 {[%emt 0:02:59][%mdl 8192] [#]} (51. Kh3 $11) 51... Qxf2+ $19 {[%emt 0:00:12]} 52. Kxf2 {[%emt 0:00:07] KB-KN} Kf6 {[%emt 0:00:02]} 53. Ke3 {[%emt 0:11:27]} Kg5 {[%emt 0:00:07]} 54. Kf3 {[%emt 0:02:26]} Ne7 {[%emt 0:02:03]} 55. Bd7 {[%emt 0:00:16]} f5 {[%emt 0:01:36]} 56. gxf5 {[%emt 0:01:44]} Nxf5 {[%emt 0:00:54]} 57. Be6 {[%emt 0:00:57]} Nd4+ {[%emt 0:01:06]} 58. Ke4 {[%emt 0:00:25]} Kxh5 {[%emt 0:00:25]} 59. Bh3 {[%emt 0:00:48]} Kh4 {[%emt 0:00:04]} 60. Bf1 {[%emt 0:00:51]} Kg3 {[%emt 0:00:09]} 61. Ke3 {[%emt 0:00:06]} h5 {[%emt 0:00:05] Weighted Error Value: White=0.63/Black=0.04 (flawless)} 0-1

[Event "12th Tamil Nadu Circuit-IM 2024"]
[Site "Chennai"]
[Date "2024.01.09"]
[Round "2.5"]
[White "Prasannaa.s"]
[Black "Mohamed Anees M"]
[Result "1/2-1/2"]
[ECO "D14"]
[WhiteElo "2213"]
[BlackElo "2319"]
[Annotator "RC"]
[PlyCount "145"]
[EventDate "2024.01.09"]
[EventType "tourn"]
[EventCountry "IND"]
[SourceTitle "playchess.com"]
[Source "ChessBase"]
[SourceQuality "1"]
[TimeControl "5400+30"]

1. Nf3 {[%emt 0:03:08]} d5 {[%emt 0:00:52]} 2. c4 {[%emt 0:00:10]} c6 {[%emt 0:00:05]} 3. cxd5 {[%emt 0:02:32]} cxd5 {[%emt 0:00:05]} 4. d4 {[%emt 0:00:04]} Nc6 {[%emt 0:00:38]} 5. Nc3 {[%emt 0:00:07]} Nf6 {[%emt 0:00:53]} 6. Bf4 {[%emt 0:00:14]} a6 {[%emt 0:01:22]} 7. e3 {[%emt 0:00:43]} Bf5 {[%emt 0:00:53]} 8. Bd3 {[%emt 0:01:21]} Bxd3 {[%emt 0:02:42]} 9. Qxd3 {[%emt 0:00:27]} e6 {[%emt 0:00:07]} 10. O-O {[%emt 0:00:12]} Be7 {[%emt 0:00:12]} 11. h3 {[%emt 0:03:52]} O-O {[%emt 0:00:14]} 12. Rfc1 {[%emt 0:00:21]} Rc8 {[%emt 0:03:40]} 13. Nd2 {[%emt 0:07:59]} Na5 {[%emt 0:12:36]} 14. Na4 {[%emt 0:09:45]} Nd7 {[%emt 0:05:43]} 15. Nb3 {[%emt 0:17:14]} Nxb3 {[%emt 0:18:24]} 16. axb3 {[%emt 0:01:18]} b5 {[%emt 0:12:39]} 17. Nc3 {[%emt 0:01:17]} Qb6 {[%emt 0:01:39]} 18. Ne2 {[%emt 0:03:21]} Qb7 {[%emt 0:03:20]} 19. Qd2 {[%emt 0:00:49]} b4 {[%emt 0:05:59]} 20. Rxc8 {[%emt 0:06:55]} Rxc8 {[%emt 0:00:13]} 21. Rc1 {[%emt 0:00:07]} Nb6 {[%emt 0:07:53]} 22. Rxc8+ {[%emt 0:03:06]} Nxc8 {[%emt 0:03:22]} 23. Qc2 {[%emt 0:00:45]} Na7 {[%emt 0:00:26]} 24. Nc1 {[%emt 0:01:42]} Qc6 {[%emt 0:01:21]} 25. Qd2 {[%emt 0:01:42]} a5 {[%emt 0:03:30]} 26. Bb8 {[%emt 0:01:50]} Nc8 {[%emt 0:02:59]} 27. Nd3 {[%emt 0:00:23]} Nb6 {[%emt 0:00:26]} 28. Qc1 {[%emt 0:03:44]} Qxc1+ {[%emt 0:00:24]} 29. Nxc1 {[%emt 0:00:02]} Bd8 {[%emt 0:02:12]} 30. Nd3 {[%emt 0:00:18]} Kf8 {[%emt 0:02:14]} 31. g4 {[%emt 0:17:35]} Ke7 32. Kg2 f6 33. h4 Nd7 34. Bg3 {[%emt 0:01:10]} Nf8 {[%emt 0:01:32]} 35. h5 {[%emt 0:01:53]} Kd7 {[%emt 0:01:02]} 36. Bb8 {[%emt 0:00:55]} Bb6 {[%emt 0:00:15]} 37. Bf4 {[%emt 0:03:09]} h6 {[%emt 0:01:16]} 38. Bb8 {[%emt 0:00:27]} Kc6 {[%emt 0:00:18]} 39. Bg3 {[%emt 0:00:55]} Bc7 {[%emt 0:00:42]} 40. f4 {[%emt 0:00:22]} f5 {[%emt 0:00:51]} 41. Bh4 {[%emt 0:02:06]} Kd7 {[%emt 0:01:09]} 42. g5 {[%emt 0:01:21]} hxg5 {[%emt 0:00:47]} 43. fxg5 {[%emt 0:00:34]} g6 {[%emt 0:00:20]} 44. h6 {[%emt 0:00:39]} Nh7 {[%emt 0:21:09]} 45. Bg3 Bd8 46. Nc5+ Ke7 47. Bf4 Kf7 48. Nb7 Bxg5 49. Bxg5 Nxg5 50. Nxa5 Ne4 51. Nc6 g5 52. Nxb4 Nd2 53. Nc6 Nxb3 54. Nd8+ Kg6 55. Nxe6 Kxh6 56. Nc5 Nd2 {[%emt 0:00:41]} 57. b4 {[%emt 0:01:06]} Nc4 {[%emt 0:00:23]} 58. Na4 {[%emt 0:00:21]} Nxe3+ {[%emt 0:00:11]} 59. Kf2 {[%emt 0:00:45]} Nc2 {[%emt 0:00:10]} 60. b5 {[%emt 0:00:08]} Nxd4 {[%emt 0:00:08]} 61. b6 {[%emt 0:00:05]} Nc6 {[%emt 0:00:08]} 62. Nc3 {[%emt 0:00:17]} d4 {[%emt 0:00:30]} 63. Nb5 {[%emt 0:00:36]} f4 {[%emt 0:01:29]} 64. b7 {[%emt 0:02:49]} d3 {[%emt 0:00:03]} 65. Ke1 {[%emt 0:00:07]} g4 {[%emt 0:01:00]} 66. Nd4 {[%emt 0:00:04]} g3 {[%emt 0:01:03]} 67. Nxc6 {[%emt 0:01:43]} g2 {[%emt 0:00:03]} 68. Kf2 {[%emt 0:00:05]} d2 {[%emt 0:00:04]} 69. b8=Q {[%emt 0:00:40]} g1=Q+ {[%emt 0:00:05]} 70. Kxg1 {[%emt 0:00:03]} d1=Q+ {[%emt 0:00:05]} 71. Kf2 {[%emt 0:00:15]} Qc2+ {[%emt 0:00:04]} 72. Kf1 {[%emt 0:00:06]} Qxc6 {[%emt 0:00:07]} 73. Qxf4+ {[%emt 0:00:04]} 1/2-1/2

[Event "12th Tamil Nadu Circuit-IM 2024"]
[Site "Chennai"]
[Date "2024.01.10"]
[Round "3.1"]
[White "Mohamed Anees M"]
[Black "Md Imran"]
[Result "1-0"]
[ECO "B50"]
[WhiteElo "2319"]
[BlackElo "2222"]
[Annotator "RC"]
[PlyCount "75"]
[EventDate "2024.01.09"]
[EventType "tourn"]
[EventCountry "IND"]
[SourceTitle "playchess.com"]
[Source "ChessBase"]
[SourceQuality "1"]
[TimeControl "5400+30"]

1. e4 {[%emt 0:00:05]} c5 {[%emt 0:00:08]} 2. Nf3 {[%emt 0:00:06]} d6 {[%emt 0:00:06]} 3. Bc4 {[%emt 0:03:46]} Nc6 {[%emt 0:00:23]} 4. O-O {[%emt 0:04:14]} Nf6 {[%emt 0:00:30]} 5. d3 {[%emt 0:00:20]} e6 {[%emt 0:01:18]} 6. Re1 {[%emt 0:03:50]} Be7 {[%emt 0:00:10]} 7. Nc3 {[%emt 0:00:27]} O-O {[%emt 0:00:08]} 8. a3 {[%emt 0:02:55]} a6 {[%emt 0:01:51]} 9. d4 {[%emt 0:06:07]} cxd4 {[%emt 0:06:05]} 10. Nxd4 {[%emt 0:00:23]} Qc7 {[%emt 0:00:48]} 11. Nxc6 {[%emt 0:06:38]} Qxc6 {[%emt 0:01:02]} 12. Bb3 {[%emt 0:00:09]} b5 {[%emt 0:00:59]} 13. Qe2 {[%emt 0:02:48]} Bb7 {[%emt 0:00:32]} 14. f3 {[%emt 0:05:46]} Nd7 {[%emt 0:01:17]} 15. Nd1 {[%emt 0:05:58]} Nc5 {[%emt 0:06:50]} 16. Ba2 {[%emt 0:00:26]} a5 {[%emt 0:01:31]} 17. Ne3 {[%emt 0:02:17]} Bf6 {[%emt 0:03:14]} 18. Ng4 {[%emt 0:02:05]} Bd4+ {[%emt 0:00:22]} 19. Kh1 {[%emt 0:00:22]} h5 {[%emt 0:04:10]} 20. c3 {[%emt 0:02:58]} Be5 {[%emt 0:05:47]} 21. Nxe5 {[%emt 0:01:37]} dxe5 {[%emt 0:00:03]} 22. Bg5 {[%emt 0:02:20]} f6 {[%emt 0:02:41]} 23. Be3 {[%emt 0:00:36]} Na4 {[%emt 0:00:19]} 24. Qf2 {[%emt 0:07:32]} Rfd8 {[%emt 0:02:30]} 25. Rad1 {[%emt 0:01:42]} Kf7 {[%emt 0:00:40]} 26. Bb3 {[%emt 0:01:28]} Ke7 {[%emt 0:01:56]} 27. h3 {[%emt 0:09:07]} Rac8 {[%emt 0:01:48]} 28. Kh2 {[%emt 0:02:05]} g5 {[%emt 0:03:31]} 29. h4 {[%emt 0:03:33]} Rg8 {[%emt 0:02:36]} 30. hxg5 {[%emt 0:01:26]} fxg5 {[%emt 0:00:03]} 31. Rd2 {[%emt 0:00:48]} Nc5 {[%emt 0:00:27]} 32. Ba2 {[%emt 0:02:45]} a4 {[%emt 0:01:29]} 33. Red1 {[%emt 0:03:08]} Nb3 {[%emt 0:00:06]} 34. Bxb3 {[%emt 0:00:52]} axb3 {[%emt 0:00:03]} 35. Rd6 {[%emt 0:01:44]} Qxd6 {[%emt 0:00:10]} 36. Bxg5+ {[%emt 0:00:57]} Kd7 {[%emt 0:00:32]} 37. Rxd6+ {[%emt 0:00:26]} Kxd6 {[%emt 0:00:03]} 38. Bf6 {[%emt 0:02:28]} 1-0